[Event "FIDE WYCC Girls U14 2023"]
[Site "Montesilvano"]
[Date "2023.11.16"]
[Round "4.7"]
[White "Trunz, Tamila"]
[Black "Ciarletta, Iris"]
[Result "0-1"]
[ECO "B99"]
[WhiteElo "1732"]
[BlackElo "1882"]
[Annotator "NA RC"]
[PlyCount "84"]
[EventDate "2023.11.13"]
[EventType "swiss"]
[EventCountry "ITA"]
[SourceTitle "playchess.com"]
[Source "ChessBase"]
[SourceQuality "1"]
[TimeControl "40/5400+30:1800+30"]

1. e4 {[%emt 0:00:03]} c5 {[%emt 0:00:42]} 2. Nf3 {[%emt 0:00:05]} d6 {[%emt 0:00:30]} 3. d4 {[%emt 0:00:07]} cxd4 {[%emt 0:00:05]} 4. Nxd4 {[%emt 0:00:06]} Nf6 {[%emt 0:00:06]} 5. Nc3 {[%emt 0:00:16]} a6 {[%emt 0:00:04]} 6. Bg5 {[%emt 0:00:30]} e6 {[%emt 0:01:02]} 7. f4 {[%emt 0:00:55]} Be7 {[%emt 0:00:59]} 8. Qf3 {[%emt 0:00:51]} Qc7 {[%emt 0:01:04]} 9. O-O-O {[%emt 0:01:34]} Nbd7 {[%emt 0:01:11]} 10. Qg3 {[%emt 0:08:54]} b5 {[%emt 0:07:39]} 11. a3 {[%emt 0:03:06]} Bb7 {[%emt 0:03:03]} 12. Bd3 {[%emt 0:02:16]} Nc5 {[%emt 0:05:26]} 13. Rhe1 {[%emt 0:02:36]} h6 {[%emt 0:05:49]} 14. Bxf6 {[%emt 0:13:06]} Bxf6 {[%emt 0:00:46]} 15. e5 {[%emt 0:01:04]} dxe5 {[%emt 0:00:40]} 16. fxe5 {[%emt 0:00:27]} Bg5+ {[%emt 0:01:03]} 17. Kb1 {[%emt 0:00:10]} O-O {[%emt 0:01:17]} 18. h4 {[%emt 0:08:45]} Be7 {[%emt 0:02:48]} 19. Qh3 {[%emt 0:14:37]} Rfd8 {[%emt 0:07:50]} 20. Bf1 {[%emt 0:09:27]} Qa5 {[%emt 0:04:46]} 21. b4 {[%emt 0:06:52]} Qxa3 {[%emt 0:00:27]} 22. bxc5 {[%emt 0:00:38]} Qxc5 {[%emt 0:01:24]} 23. Nb3 {[%emt 0:06:30]} Qc7 {[%emt 0:01:19]} 24. Na2 {[%emt 0:07:07]} b4 {[%emt 0:06:16]} 25. Rxd8+ {[%emt 0:01:29]} Rxd8 {[%emt 0:00:18]} 26. Qg4 {[%emt 0:00:41]} Rc8 {[%emt 0:01:06]} 27. Bd3 {[%emt 0:00:18]} a5 {[%emt 0:00:23]} 28. Nd4 {[%emt 0:00:39]} Bd5 {[%emt 0:00:53]} 29. Nb5 {[%emt 0:01:49]} Qb6 {[%emt 0:00:57]} 30. g3 {[%emt 0:00:47]} b3 {[%emt 0:03:11]} 31. cxb3 {[%emt 0:00:54]} Bxb3 {[%emt 0:00:23]} 32. Rc1 {[%emt 0:02:33]} Bxa2+ {[%emt 0:00:22]} 33. Kb2 {[%emt 0:02:35]} Rxc1 {[%emt 0:01:21]} 34. Qe4 {[%emt 0:00:37]} g6 {[%emt 0:00:28]} 35. Kxc1 {[%emt 0:00:37]} Qc5+ {[%emt 0:02:13]} 36. Kd2 {[%emt 0:02:35]} Bd5 {[%emt 0:02:56]} 37. Qe2 {[%emt 0:01:02]} Qg1 {[%emt 0:02:14]} 38. Qg4 {[%emt 0:00:23]} Bb4+ {[%emt 0:01:16]} 39. Kc2 {[%emt 0:00:49]} Qf2+ {[%emt 0:00:51]} 40. Be2 {[%emt 0:00:00]} Qe3 {[%emt 0:00:00]} 41. h5 {[%emt 0:06:02]} Be4+ {[%emt 0:02:59]} 42. Kb2 {[%emt 0:00:57]} Qd2+ {[%emt 0:00:20]} 0-1

[Event "FIDE WYCC Girls U14 2023"]
[Site "Montesilvano"]
[Date "2023.11.16"]
[Round "4.8"]
[White "Agamyradova, Mahri"]
[Black "Maklakova, Naomi"]
[Result "1-0"]
[ECO "D02"]
[WhiteElo "1652"]
[BlackElo "1873"]
[Annotator "NA RC"]
[PlyCount "83"]
[EventDate "2023.11.13"]
[EventType "swiss"]
[EventCountry "ITA"]
[SourceTitle "playchess.com"]
[Source "ChessBase"]
[SourceQuality "1"]
[TimeControl "40/5400+30:1800+30"]

1. d4 {[%emt 0:00:01]} d5 {[%emt 0:00:15]} 2. Nf3 {[%emt 0:00:07]} Nf6 {[%emt 0:00:11]} 3. Bf4 {[%emt 0:00:09]} e6 {[%emt 0:00:45]} 4. e3 {[%emt 0:00:06]} c5 {[%emt 0:00:12]} 5. c3 {[%emt 0:00:09]} Bd6 {[%emt 0:00:31]} 6. Bg3 {[%emt 0:00:17]} Qc7 {[%emt 0:00:14]} 7. Nbd2 {[%emt 0:00:38]} Nbd7 {[%emt 0:00:23]} 8. Bd3 {[%emt 0:01:30]} e5 {[%emt 0:04:43]} 9. dxe5 {[%emt 0:00:52]} Nxe5 {[%emt 0:00:09]} 10. Nxe5 {[%emt 0:00:46]} Bxe5 {[%emt 0:00:18]} 11. Bb5+ {[%emt 0:04:23]} Bd7 {[%emt 0:01:52]} 12. Bxd7+ {[%emt 0:03:35]} Nxd7 {[%emt 0:00:13]} 13. Nf3 {[%emt 0:03:09]} Bxg3 {[%emt 0:02:59]} 14. hxg3 {[%emt 0:00:15]} Nb6 {[%emt 0:00:29]} 15. Qd3 {[%emt 0:01:53]} g6 {[%emt 0:07:53]} 16. Qb5+ {[%emt 0:00:25]} Nd7 {[%emt 0:07:55]} 17. O-O-O {[%emt 0:02:30]} a6 {[%emt 0:01:31]} 18. Qa4 {[%emt 0:02:35]} b5 {[%emt 0:14:48]} 19. Qh4 {[%emt 0:00:23]} Qc6 {[%emt 0:02:14]} 20. Qg5 {[%emt 0:07:39]} Nf6 {[%emt 0:03:57]} 21. Qe5+ {[%emt 0:01:04]} Qe6 {[%emt 0:00:10]} 22. Rxd5 {[%emt 0:00:09]} Qxe5 {[%emt 0:06:10]} 23. Rxe5+ {[%emt 0:00:08]} Kf8 {[%emt 0:00:06]} 24. Rxc5 {[%emt 0:01:12]} Ne4 {[%emt 0:00:15]} 25. Rc7 {[%emt 0:00:12]} Nxf2 {[%emt 0:00:33]} 26. Rf1 {[%emt 0:00:01]} Ne4 {[%emt 0:01:44]} 27. Ne5 {[%emt 0:00:24]} f5 {[%emt 0:03:21]} 28. g4 {[%emt 0:00:46]} Re8 {[%emt 0:02:51]} 29. gxf5 {[%emt 0:00:38]} Ng3 {[%emt 0:05:04]} 30. Nd7+ {[%emt 0:02:11]} Ke7 {[%emt 0:02:18]} 31. Rf3 {[%emt 0:11:13]} Nxf5 {[%emt 0:02:02]} 32. e4 {[%emt 0:00:25]} Kd6 {[%emt 0:16:28]} 33. Ra7 {[%emt 0:00:39]} Rxe4 {[%emt 0:00:11]} 34. Rd3+ {[%emt 0:00:06]} Kc6 {[%emt 0:00:37]} 35. Rxa6+ {[%emt 0:00:05]} Kc7 {[%emt 0:00:11]} 36. Nc5 {[%emt 0:02:45]} Re1+ {[%emt 0:01:49]} 37. Kd2 {[%emt 0:01:32]} Re7 {[%emt 0:01:17]} 38. g4 {[%emt 0:00:08]} Rhe8 {[%emt 0:04:25]} 39. gxf5 {[%emt 0:00:10]} Re2+ {[%emt 0:00:08]} 40. Kc1 {[%emt 0:00:00]} Re1+ {[%emt 0:00:00]} 41. Kc2 {[%emt 0:00:10]} Rb8 {[%emt 0:01:32]} 42. Rd7+ {[%emt 0:00:10]} 1-0

[Event "FIDE WYCC Girls U14 2023"]
[Site "Montesilvano"]
[Date "2023.11.16"]
[Round "4.9"]
[White "Sezdbekova, Aizhan"]
[Black "Zagorac, Lara"]
[Result "1-0"]
[ECO "B27"]
[WhiteElo "1594"]
[BlackElo "1866"]
[Annotator "NA RC"]
[PlyCount "79"]
[EventDate "2023.11.13"]
[EventType "swiss"]
[EventCountry "ITA"]
[SourceTitle "playchess.com"]
[Source "ChessBase"]
[SourceQuality "1"]
[TimeControl "40/5400+30:1800+30"]

1. e4 {[%emt 0:00:02]} c5 {[%emt 0:00:10]} 2. Nf3 {[%emt 0:00:13]} g6 {[%emt 0:00:06]} 3. d4 {[%emt 0:00:05]} cxd4 {[%emt 0:00:26]} 4. Qxd4 {[%emt 0:00:04]} Nf6 {[%emt 0:00:16]} 5. e5 {[%emt 0:00:08]} Nc6 {[%emt 0:00:11]} 6. Qa4 {[%emt 0:00:28]} Nd5 {[%emt 0:00:26]} 7. Qb3 {[%emt 0:04:13]} e6 {[%emt 0:15:43]} 8. c4 {[%emt 0:03:16]} Nb6 {[%emt 0:06:28]} 9. Nc3 {[%emt 0:07:12]} d5 {[%emt 0:15:43]} 10. exd6 {[%emt 0:21:07]} Bxd6 {[%emt 0:07:22]} 11. Be3 {[%emt 0:05:56]} Qe7 {[%emt 0:04:43]} 12. O-O-O {[%emt 0:04:53]} O-O {[%emt 0:11:34]} 13. Ne4 {[%emt 0:06:21]} Bb4 {[%emt 0:10:23]} 14. a3 {[%emt 0:05:45]} f5 {[%emt 0:07:19]} 15. axb4 {[%emt 0:09:56]} fxe4 {[%emt 0:01:47]} 16. Bc5 {[%emt 0:00:08]} Qf7 {[%emt 0:01:14]} 17. Bxf8 {[%emt 0:00:42]} Qxf8 {[%emt 0:00:37]} 18. Nd2 {[%emt 0:06:17]} Nd4 {[%emt 0:06:08]} 19. Qe3 {[%emt 0:09:08]} Nf5 {[%emt 0:03:10]} 20. Qc3 {[%emt 0:03:01]} Na4 {[%emt 0:01:14]} 21. Qb3 {[%emt 0:02:03]} Bd7 {[%emt 0:01:20]} 22. Nxe4 {[%emt 0:00:40]} Bc6 {[%emt 0:00:53]} 23. Nc3 {[%emt 0:03:10]} Nxc3 {[%emt 0:00:49]} 24. Qxc3 {[%emt 0:00:09]} Rc8 {[%emt 0:00:23]} 25. f3 {[%emt 0:01:08]} b5 {[%emt 0:00:42]} 26. b3 {[%emt 0:01:12]} a5 {[%emt 0:00:28]} 27. bxa5 {[%emt 0:00:33]} Qa3+ {[%emt 0:00:19]} 28. Kb1 {[%emt 0:01:27]} b4 {[%emt 0:01:40]} 29. Qb2 {[%emt 0:00:04]} Qxa5 {[%emt 0:00:21]} 30. Bd3 {[%emt 0:00:26]} Ra8 {[%emt 0:00:31]} 31. Rhe1 {[%emt 0:00:37]} Kf7 {[%emt 0:00:19]} 32. Re5 {[%emt 0:01:22]} Qb6 {[%emt 0:00:41]} 33. Bxf5 {[%emt 0:00:12]} gxf5 {[%emt 0:00:12]} 34. Rde1 {[%emt 0:01:03]} Bd7 {[%emt 0:00:29]} 35. g4 {[%emt 0:00:26]} fxg4 {[%emt 0:02:57]} 36. fxg4 {[%emt 0:00:21]} Qd6 {[%emt 0:00:17]} 37. Rf1+ {[%emt 0:01:43]} Ke7 {[%emt 0:00:17]} 38. Re3 {[%emt 0:00:13]} Ra3 {[%emt 0:01:19]} 39. Qf6+ {[%emt 0:00:21]} Ke8 {[%emt 0:00:17]} 40. Qh8+ {[%emt 0:00:00]} 1-0

[Event "FIDE WYCC Girls U14 2023"]
[Site "Montesilvano"]
[Date "2023.11.16"]
[Round "4.10"]
[White "Diasamidze, Lulu"]
[Black "Khamdamova, Afruza"]
[Result "0-1"]
[ECO "C88"]
[WhiteElo "1676"]
[BlackElo "2199"]
[Annotator "RC"]
[PlyCount "120"]
[EventDate "2023.11.13"]
[EventType "swiss"]
[EventCountry "ITA"]
[SourceTitle "playchess.com"]
[Source "ChessBase"]
[SourceQuality "1"]
[TimeControl "40/5400+30:1800+30"]

1. e4 {[%emt 0:00:03]} e5 {[%emt 0:00:05]} 2. Nf3 {[%emt 0:00:13]} Nc6 {[%emt 0:00:24]} 3. Bb5 {[%emt 0:00:17]} a6 {[%emt 0:00:26]} 4. Ba4 {[%emt 0:00:35]} Nf6 {[%emt 0:00:45]} 5. O-O {[%emt 0:00:16]} Be7 {[%emt 0:01:43]} 6. Re1 {[%emt 0:01:15]} b5 {[%emt 0:00:43]} 7. Bb3 {[%emt 0:00:06]} d6 {[%emt 0:00:08]} 8. a4 {[%emt 0:00:42]} Bd7 {[%emt 0:00:57]} 9. axb5 {[%emt 0:01:16]} axb5 {[%emt 0:00:06]} 10. Rxa8 {[%emt 0:00:36]} Qxa8 {[%emt 0:00:02]} 11. c3 {[%emt 0:03:53]} O-O {[%emt 0:00:24]} 12. d3 {[%emt 0:02:54]} Na5 {[%emt 0:02:26]} 13. Bc2 {[%emt 0:00:43]} c5 {[%emt 0:01:04]} 14. d4 {[%emt 0:01:55]} cxd4 {[%emt 0:08:28]} 15. cxd4 {[%emt 0:01:01]} Nc6 {[%emt 0:01:08]} 16. h3 {[%emt 0:03:48]} Rc8 {[%emt 0:04:14]} 17. dxe5 dxe5 {[%emt 0:04:06]} 18. Bb3 {[%emt 0:09:27]} b4 {[%emt 0:11:28]} 19. Bg5 {[%emt 0:01:08]} Be8 {[%emt 0:03:46]} 20. Nbd2 {[%emt 0:00:52]} h6 {[%emt 0:02:03]} 21. Bxf6 {[%emt 0:02:33]} Bxf6 {[%emt 0:00:11]} 22. Bd5 {[%emt 0:00:33]} Qb8 {[%emt 0:04:44]} 23. Qe2 {[%emt 0:03:52]} Ne7 {[%emt 0:01:47]} 24. Bc4 {[%emt 0:00:34]} Ng6 {[%emt 0:01:16]} 25. b3 {[%emt 0:01:04]} Nf4 {[%emt 0:00:36]} 26. Qf1 {[%emt 0:00:22]} Bd7 {[%emt 0:00:45]} 27. Ra1 {[%emt 0:01:57]} Be7 {[%emt 0:04:06]} 28. Kh2 {[%emt 0:01:56]} Bc5 {[%emt 0:02:09]} 29. Ne1 {[%emt 0:00:46]} Qd6 {[%emt 0:03:22]} 30. Nd3 {[%emt 0:04:08]} Nxd3 31. Bxd3 {[%emt 0:01:32]} Qf6 {[%emt 0:05:36]} 32. g3 {[%emt 0:07:12]} Qxf2+ {[%emt 0:05:24]} 33. Qxf2 {[%emt 0:00:26]} Bxf2 {[%emt 0:00:02]} 34. Bc4 {[%emt 0:00:39]} Bd4 {[%emt 0:00:25]} 35. Rf1 {[%emt 0:00:54]} Be8 {[%emt 0:00:10]} 36. Nf3 {[%emt 0:00:54]} Bc3 {[%emt 0:02:20]} 37. Nh4 {[%emt 0:03:01]} Rc7 {[%emt 0:08:29]} 38. Nf5 {[%emt 0:00:21]} Rd7 {[%emt 0:00:49]} 39. Rf2 {[%emt 0:00:40]} Bd4 {[%emt 0:14:06]} 40. Ra2 {[%emt 0:00:00]} Rd8 {[%emt 0:00:00]} 41. Nxd4 {[%emt 0:04:08]} exd4 {[%emt 0:02:59]} 42. Bd5 {[%emt 0:01:27]} d3 {[%emt 0:00:54]} 43. Rd2 {[%emt 0:01:02]} Bb5 {[%emt 0:00:06]} 44. Kg2 {[%emt 0:00:38]} Rc8 {[%emt 0:03:38]} 45. Kf3 {[%emt 0:00:56]} Rc1 {[%emt 0:01:13]} 46. h4 {[%emt 0:02:41]} Kf8 {[%emt 0:00:35]} 47. Ke3 {[%emt 0:01:53]} Ke7 {[%emt 0:05:12]} 48. g4 {[%emt 0:05:11]} f6 {[%emt 0:00:38]} 49. Rg2 {[%emt 0:01:05]} Rc2 {[%emt 0:01:13]} 50. Rg1 {[%emt 0:03:56]} Re2+ {[%emt 0:01:17]} 51. Kd4 {[%emt 0:01:41]} d2 {[%emt 0:02:01]} 52. Rd1 {[%emt 0:00:20]} Bd7 {[%emt 0:02:31]} 53. Kd3 {[%emt 0:02:34]} Bxg4 {[%emt 0:00:11]} 54. Rxd2 {[%emt 0:00:18]} Rxd2+ {[%emt 0:00:08]} 55. Kxd2 {[%emt 0:00:02]} g5 {[%emt 0:00:46]} 56. hxg5 {[%emt 0:00:21]} fxg5 {[%emt 0:00:15]} 57. Ke3 {[%emt 0:00:52]} Be6 {[%emt 0:00:16]} 58. Bb7 {[%emt 0:02:34]} Bxb3 {[%emt 0:00:10]} 59. e5 {[%emt 0:00:10]} Be6 {[%emt 0:00:15]} 60. Be4 {[%emt 0:00:05]} h5 {[%emt 0:00:17]} 0-1

[Event "FIDE WYCC Girls U14 2023"]
[Site "Montesilvano"]
[Date "2023.11.16"]
[Round "4.11"]
[White "Arzur, Maia"]
[Black "Viti, Greta"]
[Result "1-0"]
[ECO "C55"]
[WhiteElo "1997"]
[BlackElo "1644"]
[Annotator "NA RC"]
[PlyCount "73"]
[EventDate "2023.11.13"]
[EventType "swiss"]
[EventCountry "ITA"]
[SourceTitle "playchess.com"]
[Source "ChessBase"]
[SourceQuality "1"]
[TimeControl "40/5400+30:1800+30"]

1. e4 {[%emt 0:00:07]} e5 {[%emt 0:00:04]} 2. Nf3 {[%emt 0:00:14]} Nc6 {[%emt 0:00:05]} 3. Bc4 {[%emt 0:00:17]} Nf6 {[%emt 0:00:11]} 4. d3 {[%emt 0:00:37]} h6 {[%emt 0:00:32]} 5. a4 {[%emt 0:01:44]} d6 {[%emt 0:00:31]} 6. c3 {[%emt 0:01:08]} g5 {[%emt 0:01:38]} 7. Be3 {[%emt 0:03:43]} Bg7 {[%emt 0:09:39]} 8. a5 {[%emt 0:05:56]} a6 {[%emt 0:00:57]} 9. Qb3 {[%emt 0:06:15]} Qe7 {[%emt 0:03:28]} 10. Nbd2 {[%emt 0:03:25]} Nd8 {[%emt 0:09:46]} 11. Nf1 {[%emt 0:08:46]} Ne6 {[%emt 0:03:31]} 12. g3 {[%emt 0:05:13]} O-O {[%emt 0:12:52]} 13. Qc2 {[%emt 0:06:53]} c6 {[%emt 0:03:05]} 14. Bb6 {[%emt 0:03:59]} d5 {[%emt 0:07:40]} 15. Ba2 {[%emt 0:01:35]} dxe4 {[%emt 0:02:10]} 16. dxe4 {[%emt 0:00:20]} Nc5 {[%emt 0:01:15]} 17. N3d2 {[%emt 0:06:56]} Kh8 {[%emt 0:15:34]} 18. Ne3 {[%emt 0:06:10]} Ng4 {[%emt 0:02:05]} 19. Ndc4 {[%emt 0:02:20]} Be6 {[%emt 0:05:35]} 20. h4 {[%emt 0:04:37]} Nd7 {[%emt 0:02:21]} 21. f3 {[%emt 0:04:52]} Nxb6 {[%emt 0:02:41]} 22. fxg4 {[%emt 0:01:18]} Nxc4 {[%emt 0:01:54]} 23. Bxc4 {[%emt 0:00:20]} Qc5 {[%emt 0:02:12]} 24. Qe2 {[%emt 0:00:23]} Bf6 {[%emt 0:01:01]} 25. b4 {[%emt 0:03:38]} Qe7 {[%emt 0:00:40]} 26. Nf5 {[%emt 0:01:03]} Bxf5 {[%emt 0:00:06]} 27. gxf5 {[%emt 0:00:17]} c5 {[%emt 0:01:54]} 28. b5 {[%emt 0:03:25]} axb5 {[%emt 0:00:04]} 29. Bxb5 {[%emt 0:00:11]} gxh4 {[%emt 0:01:45]} 30. gxh4 {[%emt 0:03:51]} Bxh4+ {[%emt 0:00:34]} 31. Kd2 {[%emt 0:00:07]} Bg5+ {[%emt 0:00:13]} 32. Kc2 {[%emt 0:00:02]} Rfd8 {[%emt 0:01:09]} 33. Qh5 {[%emt 0:01:45]} Rd2+ {[%emt 0:00:23]} 34. Kb3 {[%emt 0:01:07]} f6 {[%emt 0:01:25]} 35. Rhg1 {[%emt 0:03:11]} Qf8 {[%emt 0:01:36]} 36. Bc4 {[%emt 0:01:17]} Qe7 {[%emt 0:01:22]} 37. Rxg5 {[%emt 0:01:21]} 1-0

[Event "FIDE WYCC Girls U14 2023"]
[Site "Montesilvano"]
[Date "2023.11.16"]
[Round "4.12"]
[White "Goriachkina, Oksana"]
[Black "Wojs, Alicja"]
[Result "1-0"]
[ECO "E18"]
[WhiteElo "1915"]
[BlackElo "1630"]
[Annotator "NA RC"]
[PlyCount "101"]
[EventDate "2023.11.13"]
[EventType "swiss"]
[EventCountry "ITA"]
[SourceTitle "playchess.com"]
[Source "ChessBase"]
[SourceQuality "1"]
[TimeControl "40/5400+30:1800+30"]

1. d4 {[%emt 0:00:01]} Nf6 {[%emt 0:00:05]} 2. c4 {[%emt 0:00:07]} e6 {[%emt 0:00:05]} 3. Nf3 {[%emt 0:00:13]} b6 {[%emt 0:00:08]} 4. g3 {[%emt 0:01:06]} Bb7 {[%emt 0:00:06]} 5. Bg2 {[%emt 0:00:16]} Be7 {[%emt 0:00:08]} 6. Nc3 {[%emt 0:00:30]} O-O {[%emt 0:00:56]} 7. O-O {[%emt 0:00:47]} Ne4 {[%emt 0:01:48]} 8. Qd3 {[%emt 0:04:10]} f5 {[%emt 0:04:36]} 9. Nd2 {[%emt 0:02:57]} d5 {[%emt 0:03:21]} 10. f3 {[%emt 0:06:03]} Nxc3 {[%emt 0:07:09]} 11. bxc3 {[%emt 0:00:30]} c5 {[%emt 0:00:19]} 12. e4 {[%emt 0:09:39]} fxe4 {[%emt 0:12:43]} 13. fxe4 {[%emt 0:00:04]} Rxf1+ {[%emt 0:00:13]} 14. Nxf1 {[%emt 0:01:59]} Na6 {[%emt 0:02:21]} 15. cxd5 {[%emt 0:03:04]} exd5 {[%emt 0:00:49]} 16. e5 {[%emt 0:04:12]} Nc7 {[%emt 0:03:49]} 17. Ne3 {[%emt 0:04:45]} Qd7 {[%emt 0:13:48]} 18. Nf5 {[%emt 0:10:01]} Rf8 {[%emt 0:03:40]} 19. Nxe7+ {[%emt 0:09:35]} Qxe7 {[%emt 0:00:06]} 20. Ba3 {[%emt 0:00:21]} Rd8 {[%emt 0:05:19]} 21. Rd1 {[%emt 0:10:25]} Qe6 {[%emt 0:05:11]} 22. dxc5 {[%emt 0:05:17]} Qxe5 {[%emt 0:02:12]} 23. cxb6 {[%emt 0:00:05]} axb6 {[%emt 0:00:09]} 24. Bc1 {[%emt 0:05:18]} Ba6 {[%emt 0:05:04]} 25. Qe3 {[%emt 0:01:24]} Qf6 {[%emt 0:02:18]} 26. Qg5 {[%emt 0:03:31]} Bc4 {[%emt 0:02:08]} 27. Qxf6 {[%emt 0:00:27]} gxf6 {[%emt 0:00:01]} 28. Be3 {[%emt 0:00:11]} Bxa2 {[%emt 0:05:07]} 29. Bxb6 {[%emt 0:00:05]} Rd7 {[%emt 0:00:10]} 30. Ra1 {[%emt 0:02:57]} Nb5 {[%emt 0:02:26]} 31. Rxa2 {[%emt 0:00:38]} Nxc3 {[%emt 0:00:02]} 32. Ra8+ {[%emt 0:01:14]} Kg7 {[%emt 0:00:08]} 33. Ra7 {[%emt 0:00:03]} Rxa7 {[%emt 0:00:05]} 34. Bxa7 {[%emt 0:00:02]} Kf7 {[%emt 0:00:17]} 35. Kf2 {[%emt 0:00:30]} Ke6 {[%emt 0:00:01]} 36. Ke3 {[%emt 0:00:37]} Nb5 {[%emt 0:00:28]} 37. Bd4 {[%emt 0:01:07]} h5 {[%emt 0:01:25]} 38. Bh3+ {[%emt 0:00:43]} Kf7 {[%emt 0:00:09]} 39. Bf1 {[%emt 0:04:14]} Nxd4 {[%emt 0:02:32]} 40. Kxd4 {[%emt 0:00:00]} h4 {[%emt 0:00:00]} 41. Kxd5 {[%emt 0:01:54]} Kg6 {[%emt 0:00:30]} 42. Ke4 {[%emt 0:00:24]} Kg5 {[%emt 0:00:14]} 43. Kf3 {[%emt 0:00:14]} f5 {[%emt 0:00:07]} 44. Bd3 {[%emt 0:00:18]} hxg3 {[%emt 0:03:06]} 45. hxg3 {[%emt 0:00:04]} Kf6 {[%emt 0:00:43]} 46. Kf4 {[%emt 0:00:06]} Kg6 {[%emt 0:00:03]} 47. Bxf5+ {[%emt 0:00:09]} Kf6 {[%emt 0:00:01]} 48. g4 {[%emt 0:00:08]} Kf7 {[%emt 0:00:06]} 49. Kg5 {[%emt 0:00:27]} Kg7 {[%emt 0:00:05]} 50. Be6 {[%emt 0:00:08]} Kh7 {[%emt 0:00:07]} 51. Kf6 {[%emt 0:00:09]} 1-0

[Event "FIDE WYCC Girls U14 2023"]
[Site "Montesilvano"]
[Date "2023.11.16"]
[Round "4.13"]
[White "Blauhut, Anna"]
[Black "Iordache, Alexia-Andreea"]
[Result "1/2-1/2"]
[ECO "B51"]
[WhiteElo "1640"]
[BlackElo "1892"]
[Annotator "NA RC"]
[PlyCount "126"]
[EventDate "2023.11.13"]
[EventType "swiss"]
[EventCountry "ITA"]
[SourceTitle "playchess.com"]
[Source "ChessBase"]
[SourceQuality "1"]
[TimeControl "40/5400+30:1800+30"]

1. e4 {[%emt 0:00:08]} c5 {[%emt 0:00:01]} 2. Nf3 {[%emt 0:00:32]} d6 {[%emt 0:00:03]} 3. Bb5+ {[%emt 0:00:29]} Nd7 {[%emt 0:00:04]} 4. O-O {[%emt 0:00:19]} a6 {[%emt 0:00:02]} 5. Bd3 {[%emt 0:00:57]} Ngf6 {[%emt 0:00:08]} 6. Re1 {[%emt 0:02:28]} Qc7 {[%emt 0:00:05]} 7. Bf1 {[%emt 0:01:43]} b6 {[%emt 0:01:52]} 8. d4 {[%emt 0:05:42]} cxd4 {[%emt 0:00:56]} 9. Nxd4 {[%emt 0:00:47]} Bb7 {[%emt 0:01:02]} 10. Nd2 {[%emt 0:04:28]} Nc5 {[%emt 0:01:45]} 11. f3 {[%emt 0:00:32]} e6 {[%emt 0:02:04]} 12. c3 {[%emt 0:01:17]} Be7 {[%emt 0:03:02]} 13. N2b3 {[%emt 0:02:11]} O-O {[%emt 0:01:59]} 14. Be3 {[%emt 0:04:30]} d5 {[%emt 0:02:31]} 15. exd5 {[%emt 0:04:08]} Nxd5 {[%emt 0:00:35]} 16. Bf2 {[%emt 0:06:33]} Rfd8 {[%emt 0:04:59]} 17. Bg3 {[%emt 0:06:26]} Bd6 {[%emt 0:01:48]} 18. Bxd6 {[%emt 0:03:10]} Rxd6 {[%emt 0:01:32]} 19. Qc2 {[%emt 0:03:35]} Rad8 {[%emt 0:02:02]} 20. Rad1 {[%emt 0:03:02]} R6d7 {[%emt 0:06:58]} 21. Qf2 {[%emt 0:09:09]} Nf6 {[%emt 0:07:29]} 22. Qg3 {[%emt 0:06:35]} Qxg3 {[%emt 0:01:40]} 23. hxg3 {[%emt 0:01:30]} Bd5 {[%emt 0:06:17]} 24. Nxc5 {[%emt 0:05:40]} bxc5 {[%emt 0:00:39]} 25. Nc2 {[%emt 0:01:21]} Bxa2 {[%emt 0:02:07]} 26. Rxd7 {[%emt 0:00:11]} Rxd7 {[%emt 0:00:06]} 27. Bxa6 {[%emt 0:00:35]} Bb3 {[%emt 0:02:56]} 28. Ne3 {[%emt 0:01:26]} Rd2 {[%emt 0:01:20]} 29. Re2 {[%emt 0:00:58]} Rxe2 30. Bxe2 {[%emt 0:00:19]} Nd5 {[%emt 0:09:52]} 31. Kf2 {[%emt 0:02:18]} Kf8 {[%emt 0:04:28]} 32. Bc4 {[%emt 0:02:24]} Bxc4 {[%emt 0:02:03]} 33. Nxc4 {[%emt 0:00:13]} Ke7 {[%emt 0:00:07]} 34. Ke2 {[%emt 0:01:20]} f6 {[%emt 0:00:34]} 35. Ne3 {[%emt 0:01:07]} Nc7 {[%emt 0:04:46]} 36. Kd3 {[%emt 0:00:39]} Kd6 {[%emt 0:02:01]} 37. b4 {[%emt 0:06:07]} cxb4 {[%emt 0:02:30]} 38. cxb4 {[%emt 0:00:23]} Kc6 {[%emt 0:00:31]} 39. Kc4 {[%emt 0:01:31]} Nb5 {[%emt 0:00:27]} 40. g4 {[%emt 0:00:00]} Nd6+ {[%emt 0:00:00]} 41. Kb3 {[%emt 0:01:39]} Kb5 {[%emt 0:03:07]} 42. Nc2 {[%emt 0:00:15]} e5 {[%emt 0:01:09]} 43. Na3+ {[%emt 0:01:33]} Ka6 {[%emt 0:02:21]} 44. Nc4 {[%emt 0:01:42]} Nb5 {[%emt 0:01:21]} 45. Nd2 {[%emt 0:01:43]} Kb6 {[%emt 0:02:23]} 46. Ne4 {[%emt 0:03:15]} Nd4+ {[%emt 0:03:40]} 47. Kc4 {[%emt 0:00:19]} Kc6 {[%emt 0:00:54]} 48. Nc3 {[%emt 0:00:53]} f5 {[%emt 0:02:42]} 49. b5+ {[%emt 0:03:19]} Kb6 {[%emt 0:05:15]} 50. Nd5+ {[%emt 0:00:15]} Kb7 {[%emt 0:00:18]} 51. Ne3 {[%emt 0:00:27]} g6 {[%emt 0:05:53]} 52. gxf5 {[%emt 0:01:41]} gxf5 {[%emt 0:00:12]} 53. Kd5 {[%emt 0:03:51]} f4 {[%emt 0:00:30]} 54. Nc4 {[%emt 0:00:06]} Nc2 {[%emt 0:02:55]} 55. Ke4 {[%emt 0:01:46]} Ne1 {[%emt 0:00:55]} 56. Kxe5 {[%emt 0:00:27]} Nxg2 {[%emt 0:00:01]} 57. Nd6+ {[%emt 0:02:25]} Kb6 {[%emt 0:01:22]} 58. Kf5 {[%emt 0:04:06]} Kc5 {[%emt 0:00:20]} 59. Ne4+ {[%emt 0:00:06]} Kxb5 {[%emt 0:00:38]} 60. Ng5 {[%emt 0:00:32]} h5 {[%emt 0:00:42]} 61. Ne6 {[%emt 0:00:58]} h4 {[%emt 0:01:16]} 62. Nxf4 {[%emt 0:00:28]} h3 {[%emt 0:00:10]} 63. Nxh3 {[%emt 0:00:13]} Nh4+ {[%emt 0:00:04]} 1/2-1/2

[Event "FIDE WYCC Girls U14 2023"]
[Site "Montesilvano"]
[Date "2023.11.16"]
[Round "4.14"]
[White "Negre, Emilie"]
[Black "Valente, Sofia"]
[Result "1-0"]
[ECO "A65"]
[WhiteElo "1871"]
[BlackElo "1604"]
[Annotator "NA RC"]
[PlyCount "35"]
[EventDate "2023.11.13"]
[EventType "swiss"]
[EventCountry "ITA"]
[SourceTitle "playchess.com"]
[Source "ChessBase"]
[SourceQuality "1"]
[TimeControl "40/5400+30:1800+30"]

1. d4 {[%emt 0:00:02]} Nf6 {[%emt 0:00:14]} 2. c4 {[%emt 0:00:05]} c5 {[%emt 0:00:35]} 3. d5 {[%emt 0:00:13]} e6 {[%emt 0:00:23]} 4. Nc3 {[%emt 0:00:08]} exd5 {[%emt 0:00:43]} 5. cxd5 {[%emt 0:00:06]} d6 {[%emt 0:00:33]} 6. e4 {[%emt 0:00:11]} g6 {[%emt 0:01:00]} 7. h3 {[%emt 0:00:11]} Bg7 {[%emt 0:03:08]} 8. Nf3 {[%emt 0:00:07]} O-O {[%emt 0:00:23]} 9. Bd3 {[%emt 0:00:05]} b5 {[%emt 0:01:27]} 10. Nxb5 {[%emt 0:00:06]} Nxe4 {[%emt 0:03:21]} 11. Bxe4 {[%emt 0:00:11]} Re8 {[%emt 0:00:56]} 12. Ng5 {[%emt 0:00:08]} h6 {[%emt 0:06:53]} 13. Ne6 {[%emt 0:00:08]} Qa5+ {[%emt 0:13:24]} 14. Nc3 {[%emt 0:02:22]} Bxc3+ {[%emt 0:02:11]} 15. bxc3 {[%emt 0:00:09]} Bxe6 {[%emt 0:31:00]} 16. dxe6 {[%emt 0:04:12]} Rxe6 {[%emt 0:00:16]} 17. O-O {[%emt 0:00:26]} Qxc3 {[%emt 0:04:52]} 18. Bd2 {[%emt 0:00:20]} 1-0